fUSD/lending_fUSD_20240217
["ID","MTS","AMOUNT","RATE_DAILY","PERIOD"]
[314282584,1708147876661,-152.266666,0.00053198,30]
[314282585,1708147876670,-456.8,0.00053198,30]
[314282586,1708147876679,-244.0,0.00053199,120]
[314282587,1708147876689,-269.84842784,0.000532,120]
[314282588,1708147876698,-269.84842781,0.000532,120]
[314282589,1708147876707,-269.84842781,0.000532,120]
[314282590,1708147876717,-269.84842781,0.000532,120]
[314282591,1708147876726,-269.84842781,0.000532,120]
[314282592,1708147876736,-500.0,0.00053217,120]
[314282593,1708147876745,-667.18,0.000533,120]
[314282594,1708147876754,-500.0,0.00053383,120]
[314282595,1708147876763,-25000.0,0.000534,120]
[314282596,1708147876772,-500.6388365,0.00053424,60]
[314282597,1708147876782,-500.0,0.00053424,60]
[314282598,1708147876791,-526.92,0.00053424,60]
[314282599,1708147876801,-1028.76,0.00053424,2]
[314282600,1708147876810,-629.85,0.00053424,60]
[314282601,1708147876819,-500.0,0.00053424,60]
[314282602,1708147876829,-500.0,0.00053424,60]
[314282603,1708147876838,-563.05,0.00053424,2]
[314282604,1708147876847,-618.81,0.00053424,60]
[314282605,1708147876857,-500.0,0.00053424,60]
[314282606,1708147876866,-1162.21,0.00053424,60]
[314282607,1708147876875,-1393.94,0.00053424,60]
[314282608,1708147876885,-500.0,0.00053424,60]
[314282609,1708147876894,-739.89,0.00053424,60]
[314282610,1708147876903,-972.28,0.00053424,60]
[314282611,1708147876912,-500.0,0.00053424,60]
[314282612,1708147876922,-500.0,0.00053424,60]
[314282613,1708147876932,-523.96,0.00053424,60]
[314282614,1708147876941,-500.0,0.00053424,60]
[314282615,1708147876950,-238.09942292,0.00053424,60]
[314282616,1708147876960,-854.01,0.00053424,60]
[314282617,1708147876969,-500.0,0.00053424,60]
[314282618,1708147876978,-893.76,0.00053424,60]
[314282619,1708147876987,-1165.59,0.00053424,60]
[314282620,1708147876996,-1495.02,0.00053424,60]
[314282621,1708147877005,-636.17,0.00053424,60]
[314282622,1708147877015,-500.0,0.00053424,60]
[314282623,1708147877025,-500.0,0.00053424,60]
[314282624,1708147877035,-5024.34,0.00053424,60]
[314282625,1708147877044,-602.99,0.00053424,60]
[314282626,1708147877053,-3136.01,0.00053424,60]
[314282627,1708147877062,-500.0,0.00053424,60]
[314282628,1708147877072,-500.0,0.00053424,60]
[314282629,1708147877081,-569.8,0.00053424,60]
[314282630,1708147877090,-500.0,0.00053424,60]
[314282631,1708147877100,-556.89,0.00053424,60]
[314282632,1708147877109,-3220.88,0.00053424,60]
[314282633,1708147877119,-500.0,0.00053424,60]
[314282634,1708147877128,-1210.8,0.00053424,14]
[314282635,1708147877138,-500.0,0.00053424,60]
[314282636,1708147877147,-1846.34,0.00053424,60]
[314282637,1708147877157,-783.66,0.00053424,60]
[314282638,1708147877166,-622.67,0.00053424,60]
[314282639,1708147877175,-500.0,0.00053424,60]
[314282640,1708147877185,-500.0,0.00053424,60]
[314282641,1708147877194,-502.24,0.00053424,60]
[314282642,1708147877203,-873.0,0.00053424,60]
[314282643,1708147877212,-500.0,0.00053424,60]
[314282644,1708147877222,-523.09,0.00053424,60]
[314282645,1708147877231,-500.0,0.00053424,60]
[314282646,1708147877241,-519.51,0.00053424,60]
[314282647,1708147877250,-500.0,0.00053424,60]
[314282648,1708147877259,-500.0,0.00053424,60]
[314282649,1708147877269,-1634.88,0.00053424,60]
[314282650,1708147877278,-200.12337631,0.00053424,60]
[314282651,1708147877287,-937.4,0.00053424,60]
[314282652,1708147877297,-500.0,0.00053424,60]
[314282653,1708147877307,-2129.66,0.00053424,60]
[314282654,1708147877316,-577.85,0.00053424,60]
[314282655,1708147877326,-1182.25,0.00053424,60]
[314282656,1708147877336,-500.0,0.00053424,60]
[314282657,1708147877345,-500.0,0.00053424,60]
[314282658,1708147877354,-1111.25,0.00053424,60]
[314282659,1708147877363,-1935.87,0.00053424,60]
[314282660,1708147877373,-692.92,0.00053424,60]
[314282661,1708147877387,-554.4,0.00053424,60]
[314282662,1708147877396,-879.44,0.00053424,60]
[314282663,1708147877405,-500.0,0.00053424,60]
[314282664,1708147877414,-1145.97,0.00053424,60]
[314282665,1708147877425,-500.0,0.00053424,60]
[314282666,1708147877434,-500.0,0.00053424,60]
[314282667,1708147877444,-548.51,0.00053424,60]
[314282668,1708147877453,-718.43,0.00053424,60]
[314282669,1708147877462,-5123.64,0.00053424,60]
[314282670,1708147877471,-500.0,0.00053424,60]
[314282671,1708147877481,-416.58366247,0.00053424,60]
[314282672,1708147877491,-738.56,0.00053424,60]
[314282673,1708147877499,-12479.19,0.00053424,60]
[314282674,1708147877509,-151.021777,0.00053448,81]
[314282675,1708147877518,-206.0,0.00053453,42]
[314282676,1708147877527,-1000.0,0.00053459,45]
[314282677,1708147877536,-1000.0,0.00053459,45]
[314282678,1708147877546,-1000.0,0.00053459,45]
[314282679,1708147877554,-1000.0,0.00053459,45]
[314282680,1708147877563,-386.47327507,0.000535,120]
[314282681,1708147877572,-166.0,0.000535,10]
[314282682,1708147877581,-1530.62841672,0.000535,14]
[314282683,1708147877590,-500.0,0.00053549,120]
[314282684,1708147877600,-150.0,0.000536,120]
[314282685,1708147877609,-158.23203844,0.00053646,60]
[314282686,1708147877617,-500.0,0.00053698,60]
[314282687,1708147877626,-526.92,0.00053698,60]
[314282688,1708147877635,-1028.76,0.00053698,2]
[314282689,1708147877644,-629.85,0.00053698,60]
[314282690,1708147877653,-500.0,0.00053698,60]
[314282691,1708147877663,-500.0,0.00053698,60]
[314282692,1708147877672,-563.05,0.00053698,2]
[314282693,1708147877681,-618.81,0.00053698,60]
[314282694,1708147877690,-500.0,0.00053698,60]
[314282695,1708147877699,-1162.21,0.00053698,60]
[314282696,1708147877708,-1393.94,0.00053698,60]
[314282697,1708147877717,-500.0,0.00053698,60]
[314282698,1708147877725,-739.89,0.00053698,60]
[314282699,1708147877735,-972.28,0.00053698,60]
[314282700,1708147877744,-500.0,0.00053698,60]
[314282701,1708147877754,-500.0,0.00053698,60]
[314282702,1708147877763,-523.96,0.00053698,60]
[314282703,1708147877772,-500.0,0.00053698,60]
[314282704,1708147877781,-854.01,0.00053698,60]
[314282705,1708147877790,-500.0,0.00053698,60]
[314282706,1708147877800,-893.76,0.00053698,60]
[314282707,1708147877809,-1165.59,0.00053698,60]
[314282708,1708147877819,-1495.02,0.00053698,60]
[314282709,1708147877831,-636.17,0.00053698,60]
[314282710,1708147877840,-500.0,0.00053698,60]
[314282711,1708147877850,-500.0,0.00053698,60]
[314282712,1708147877859,-5024.34,0.00053698,60]
[314282713,1708147877869,-602.99,0.00053698,60]
[314282714,1708147877878,-3136.01,0.00053698,60]
[314282715,1708147877887,-500.0,0.00053698,60]
[314282716,1708147877897,-500.0,0.00053698,60]
[314282717,1708147877906,-569.8,0.00053698,60]
[314282718,1708147877915,-421.69861618,0.00053698,60]
[314282719,1708147877924,-556.89,0.00053698,60]
[314282720,1708147877932,-3220.88,0.00053698,60]
[314282721,1708147877941,-500.0,0.00053698,60]
[314282722,1708147877950,-1210.8,0.00053698,14]
[314282723,1708147877960,-500.0,0.00053698,60]
[314282724,1708147877969,-1846.34,0.00053698,60]
[314282725,1708147877979,-783.66,0.00053698,60]
[314282726,1708147877988,-622.67,0.00053698,60]
[314282727,1708147877998,-500.0,0.00053698,60]
[314282728,1708147878007,-500.0,0.00053698,60]
[314282729,1708147878016,-502.24,0.00053698,60]
[314282730,1708147878025,-873.0,0.00053698,60]
[314282731,1708147878034,-500.0,0.00053698,60]
[314282732,1708147878044,-523.09,0.00053698,60]
[314282733,1708147878053,-500.0,0.00053698,60]
[314282734,1708147878061,-519.51,0.00053698,60]
[314282735,1708147878070,-500.0,0.00053698,60]
[314282736,1708147878079,-500.0,0.00053698,60]
[314282737,1708147878089,-1634.88,0.00053698,60]
[314282738,1708147878098,-937.4,0.00053698,60]
[314282739,1708147878107,-500.0,0.00053698,60]
[314282740,1708147878117,-2129.66,0.00053698,60]
[314282741,1708147878126,-577.85,0.00053698,60]
[314282742,1708147878135,-1182.25,0.00053698,60]
[314282743,1708147878145,-500.0,0.00053698,60]
[314282744,1708147878154,-616.39755566,0.00053698,60]
[314282745,1708147878163,-1111.25,0.00053698,60]
[314282746,1708147878172,-1935.87,0.00053698,60]
[314282747,1708147878181,-692.92,0.00053698,60]
[314282748,1708147878190,-554.4,0.00053698,60]
[314282749,1708147878200,-879.44,0.00053698,60]
[314282750,1708147878210,-418.30970664,0.00053698,60]
[314282751,1708147878219,-500.0,0.00053698,60]
[314282752,1708147878228,-1145.97,0.00053698,60]
[314282753,1708147878238,-500.0,0.00053698,60]
[314282754,1708147878247,-548.51,0.00053698,60]
[314282755,1708147878257,-718.43,0.00053698,60]
[314282756,1708147878266,-5123.64,0.00053698,60]
[314282757,1708147878275,-738.56,0.00053698,60]
[314282758,1708147878284,-12479.19,0.00053698,60]
[314282759,1708147878293,-500.0,0.00053715,120]
[314282760,1708147878303,-238.4273123,0.00053731,30]
[314282761,1708147878312,-244.0,0.00053747,120]
[314282762,1708147878322,-151.021777,0.00053748,80]
[314282763,1708147878331,-409.94,0.00053758,2]
[314282764,1708147878341,-1290.65,0.0005376,4]
[314282765,1708147878350,-20314.32216363,0.00053838,30]
[314282766,1708147878360,-1138.63,0.00053841,120]
[314282767,1708147878369,-500.0,0.00053881,120]
[314282768,1708147878380,-38604.35455438,0.000539,30]
[314282769,1708147878396,-32075.97873068,0.000539,30]
[314282770,1708147878405,-456.8,0.00053943,30]
[314282771,1708147878415,-182.72,0.00053943,30]
[314282772,1708147878425,-367.24970475,0.00053972,60]
[314282773,1708147878435,-526.92,0.00053972,60]
[314282774,1708147878444,-1028.76,0.00053972,2]
[314282775,1708147878453,-2500.0,0.00053972,7]
[314282776,1708147878463,-629.85,0.00053972,60]
[314282777,1708147878473,-500.0,0.00053972,60]
[314282778,1708147878484,-500.0,0.00053972,60]
[314282779,1708147878494,-563.05,0.00053972,2]
[314282780,1708147878503,-618.81,0.00053972,60]
[314282781,1708147878513,-500.0,0.00053972,60]
[314282782,1708147878522,-1162.21,0.00053972,60]
[314282783,1708147878532,-1393.94,0.00053972,60]
[314282784,1708147878541,-500.0,0.00053972,60]
[314282785,1708147878550,-739.89,0.00053972,60]
[314282786,1708147878561,-972.28,0.00053972,60]
[314282787,1708147878570,-500.0,0.00053972,60]
[314282788,1708147878580,-500.0,0.00053972,60]
[314282789,1708147878590,-523.96,0.00053972,60]
[314282790,1708147878599,-500.0,0.00053972,60]
[314282791,1708147878608,-854.01,0.00053972,60]
[314282792,1708147878618,-500.0,0.00053972,60]
[314282793,1708147878627,-893.76,0.00053972,60]
[314282794,1708147878637,-1165.59,0.00053972,60]
[314282795,1708147878646,-1495.02,0.00053972,60]
[314282796,1708147878656,-636.17,0.00053972,60]
[314282797,1708147878665,-500.0,0.00053972,60]
[314282798,1708147878675,-500.0,0.00053972,60]
[314282799,1708147878685,-5024.34,0.00053972,60]
[314282800,1708147878695,-602.99,0.00053972,60]
[314282801,1708147878704,-3136.01,0.00053972,60]
[314282802,1708147878713,-500.0,0.00053972,60]
[314282803,1708147878722,-500.0,0.00053972,60]
[314282804,1708147878731,-569.8,0.00053972,60]
[314282805,1708147878741,-556.89,0.00053972,60]
[314282806,1708147878751,-3220.88,0.00053972,60]
[314282807,1708147878761,-500.0,0.00053972,60]
[314282808,1708147878770,-1210.8,0.00053972,14]
[314282809,1708147878780,-500.0,0.00053972,60]
[314282810,1708147878790,-1846.34,0.00053972,60]
[314282811,1708147878800,-783.66,0.00053972,60]
[314282812,1708147878810,-622.67,0.00053972,60]
[314282813,1708147878820,-500.0,0.00053972,60]
[314282814,1708147878829,-500.0,0.00053972,60]
[314282815,1708147878839,-502.24,0.00053972,60]
[314282816,1708147878848,-873.0,0.00053972,60]
[314282817,1708147878858,-500.0,0.00053972,60]
[314282818,1708147878868,-523.09,0.00053972,60]
[314282819,1708147878877,-500.0,0.00053972,60]
[314282820,1708147878886,-519.51,0.00053972,60]
[314282821,1708147878896,-373.81524868,0.00053972,60]
[314282822,1708147878905,-500.0,0.00053972,60]
[314282823,1708147878915,-1634.88,0.00053972,60]
[314282824,1708147878924,-937.4,0.00053972,60]
[314282825,1708147878934,-500.0,0.00053972,60]
[314282826,1708147878943,-2129.66,0.00053972,60]
[314282827,1708147878953,-577.85,0.00053972,60]
[314282828,1708147878962,-1182.25,0.00053972,60]
[314282829,1708147878972,-500.0,0.00053972,60]
[314282830,1708147878982,-1111.25,0.00053972,60]
[314282831,1708147878992,-1935.87,0.00053972,60]
[314282832,1708147879002,-692.92,0.00053972,60]
[314282833,1708147879012,-554.4,0.00053972,60]
[314282834,1708147879021,-879.44,0.00053972,60]
[314282835,1708147879030,-500.0,0.00053972,60]
[314282836,1708147879040,-1145.97,0.00053972,60]
[314282837,1708147879049,-500.0,0.00053972,60]
[314282838,1708147879058,-718.43,0.00053972,60]
[314282839,1708147879067,-548.51,0.00053972,60]
[314282840,1708147879077,-5123.64,0.00053972,60]
[314282841,1708147879086,-738.56,0.00053972,60]
[314282842,1708147879095,-12479.19,0.00053972,60]
[314282843,1708147879105,-456.8,0.0005398,30]
[314282844,1708147879114,-200.0,0.00053987,90]
[314282845,1708147879124,-200.0,0.00053987,88]
[314282846,1708147879133,-18681.30000075,0.00054,120]
[314282847,1708147879142,-190069.75730027,0.00054,30]
[314282848,1708147879152,-874.406615,0.00054,120]
[314282849,1708147879162,-300.0,0.00054,54]
[314282850,1708147879171,-182.00450485,0.00054,120]
[314282851,1708147879180,-166.0,0.00054,11]
[314282852,1708147879290,-10000.0,0.00054,25]
[314282853,1708147879310,-50000.0,0.00054,30]
[314282854,1708147879320,-1000.0,0.00054,15]
[314282855,1708147879329,-518.91831547,0.00054,60]
[314282856,1708147879339,-557.53589337,0.00054,60]
[314282857,1708147879348,-510.15287289,0.00054,60]
[314282858,1708147879358,-158.88917359,0.00054022,30]
[314282859,1708147879368,-238.56570963,0.00054037,14]
[314282860,1708147879377,-201.31858058,0.00054037,14]
[314282861,1708147879389,-500.0,0.00054047,120]
[314282862,1708147879398,-275.56618133,0.000541,120]
[314282863,1708147879407,-316.92,0.000541,2]
[314282864,1708147879416,-166.05101382,0.00054106,60]
[314282865,1708147879425,-158.23203846,0.00054116,60]
[314282866,1708147879436,-100000.00000001,0.00054126,15]
[314282867,1708147879445,-154.89,0.000542,7]
[314282868,1708147879454,-154.89,0.000542,7]
[314282869,1708147879464,-154.89,0.000542,7]
[314282870,1708147879474,-153.46,0.000542,7]
[314282871,1708147879484,-153.46,0.000542,7]
[314282872,1708147879493,-153.46,0.000542,7]
[314282873,1708147879502,-153.46,0.000542,7]
[314282874,1708147879511,-153.46,0.000542,7]
[314282875,1708147879521,-153.46,0.000542,7]
[314282876,1708147879530,-153.46,0.000542,7]
[314282877,1708147879539,-153.46,0.000542,7]
[314282878,1708147879548,-153.46,0.000542,7]
[314282879,1708147879558,-153.46,0.000542,7]
[314282880,1708147879568,-153.46,0.000542,7]
[314282881,1708147879578,-153.46,0.000542,7]
[314282882,1708147879587,-153.46,0.000542,7]
[314282883,1708147879597,-153.46,0.000542,7]
[314282884,1708147879606,-153.46,0.000542,7]
[314282885,1708147879615,-153.46,0.000542,7]
[314282886,1708147879625,-153.46,0.000542,7]
[314282887,1708147879635,-153.46,0.000542,7]
[314282888,1708147879644,-153.46,0.000542,7]
[314282889,1708147879653,-500.0,0.00054213,120]
[314282890,1708147879663,-256.2729031,0.00054232,2]
[314282891,1708147879672,-960.4181098,0.00054232,2]
[314282892,1708147879682,-8126.8333695,0.00054232,2]
[314282893,1708147879691,-253.9555528,0.00054232,2]
[314282894,1708147879701,-1487.0122766,0.00054232,2]
[314282895,1708147879710,-349.6128822,0.00054232,2]
[314282896,1708147879720,-2519.8331322,0.00054232,2]
[314282897,1708147879729,-526.92,0.00054246,60]
[314282898,1708147879739,-1028.76,0.00054246,2]
[314282899,1708147879748,-629.85,0.00054246,60]
[314282900,1708147879757,-500.0,0.00054246,60]
[314282901,1708147879766,-549.11123908,0.00054246,60]
[314282902,1708147879775,-563.05,0.00054246,2]
[314282903,1708147879785,-618.81,0.00054246,60]
[314282904,1708147879795,-500.0,0.00054246,60]
[314282905,1708147879804,-1162.21,0.00054246,60]
[314282906,1708147879815,-1393.94,0.00054246,60]
[314282907,1708147879824,-500.0,0.00054246,60]
[314282908,1708147879834,-739.89,0.00054246,60]
[314282909,1708147879844,-972.28,0.00054246,60]
[314282910,1708147879853,-500.0,0.00054246,60]
[314282911,1708147879864,-500.0,0.00054246,60]
[314282912,1708147879874,-523.96,0.00054246,60]
[314282913,1708147879883,-500.0,0.00054246,60]
[314282914,1708147879892,-854.01,0.00054246,60]
[314282915,1708147879902,-500.0,0.00054246,60]
[314282916,1708147879911,-893.76,0.00054246,60]
[314282917,1708147879921,-1165.59,0.00054246,60]
[314282918,1708147879931,-1495.02,0.00054246,60]
[314282919,1708147879940,-636.17,0.00054246,60]
[314282920,1708147879950,-613.41894651,0.00054246,60]
[314282921,1708147879959,-647.4073637,0.00054246,60]
[314282922,1708147879970,-5024.34,0.00054246,60]
[314282923,1708147879979,-602.99,0.00054246,60]
[314282924,1708147879989,-3136.01,0.00054246,60]
[314282925,1708147879998,-500.0,0.00054246,60]
[314282926,1708147880008,-500.0,0.00054246,60]
[314282927,1708147880018,-569.8,0.00054246,60]
[314282928,1708147880028,-556.89,0.00054246,60]
[314282929,1708147880037,-3220.88,0.00054246,60]
[314282930,1708147880047,-500.0,0.00054246,60]
[314282931,1708147880056,-1210.8,0.00054246,14]
[314282932,1708147880066,-500.0,0.00054246,60]
[314282933,1708147880075,-1846.34,0.00054246,60]
[314282934,1708147880085,-783.66,0.00054246,60]
[314282935,1708147880094,-622.67,0.00054246,60]
[314282936,1708147880104,-500.0,0.00054246,60]
[314282937,1708147880113,-500.0,0.00054246,60]
[314282938,1708147880123,-502.24,0.00054246,60]
[314282939,1708147880132,-873.0,0.00054246,60]
[314282940,1708147880141,-500.0,0.00054246,60]
[314282941,1708147880150,-523.09,0.00054246,60]
[314282942,1708147880160,-500.0,0.00054246,60]
[314282943,1708147880169,-519.51,0.00054246,60]
[314282944,1708147880178,-500.0,0.00054246,60]
[314282945,1708147880187,-1634.88,0.00054246,60]
[314282946,1708147880196,-937.4,0.00054246,60]
[314282947,1708147880205,-253.0417481,0.00054246,60]
[314282948,1708147880214,-2129.66,0.00054246,60]
[314282949,1708147880223,-577.85,0.00054246,60]
[314282950,1708147880232,-1182.25,0.00054246,60]
[314282951,1708147880242,-500.0,0.00054246,60]
[314282952,1708147880252,-1111.25,0.00054246,60]
[314282953,1708147880261,-1935.87,0.00054246,60]
[314282954,1708147880270,-692.92,0.00054246,60]
[314282955,1708147880281,-554.4,0.00054246,60]
[314282956,1708147880290,-879.44,0.00054246,60]
[314282957,1708147880299,-500.0,0.00054246,60]
[314282958,1708147880308,-1145.97,0.00054246,60]
[314282959,1708147880318,-500.0,0.00054246,60]
[314282960,1708147880327,-718.43,0.00054246,60]
[314282961,1708147880337,-548.51,0.00054246,60]
[314282962,1708147880346,-5123.64,0.00054246,60]
[314282963,1708147880355,-738.56,0.00054246,60]
[314282964,1708147880365,-12479.19,0.00054246,60]
[314282965,1708147880375,-152.0,0.00054268,6]
[314282966,1708147880384,-2027341.63,0.00054269,120]
[314282967,1708147880397,-13112.37165254,0.00054269,2]
[314282968,1708147880406,-244.0,0.00054295,120]
[314282969,1708147880415,-2432.95365588,0.00054321,2]
[314282970,1708147880424,-5331.02501207,0.00054348,31]
[314282971,1708147880434,-500.0,0.00054379,120]
[314282972,1708147880444,-25000.0,0.000544,120]
[314282973,1708147880452,-151.021777,0.00054448,81]
[314282974,1708147880461,-2943.48867172,0.0005449,120]
[314282975,1708147880470,-492.37308739,0.00054495,30]
[314282976,1708147880479,-3000.0,0.000545,50]
[314282977,1708147880489,-5000.0,0.000545,64]
[314282978,1708147880498,-5000.0,0.000545,64]
[314282979,1708147880507,-3000.0,0.000545,50]
[314282980,1708147880515,-3000.0,0.000545,50]
[314282981,1708147880524,-5000.0,0.000545,64]
[314282982,1708147880533,-726.00250677,0.000545,10]
[314282983,1708147880542,-526.92,0.0005452,120]
[314282984,1708147880551,-1028.76,0.0005452,2]
[314282985,1708147880562,-629.85,0.0005452,120]
[314282986,1708147880571,-500.0,0.0005452,120]
[314282987,1708147880580,-563.05,0.0005452,2]
[314282988,1708147880590,-618.81,0.0005452,120]
[314282989,1708147880599,-500.0,0.0005452,120]
[314282990,1708147880608,-1162.21,0.0005452,120]
[314282991,1708147880618,-1393.94,0.0005452,120]
[314282992,1708147880627,-544.66118887,0.0005452,120]
[314282993,1708147880636,-739.89,0.0005452,120]
[314282994,1708147880645,-972.28,0.0005452,120]
[314282995,1708147880654,-214.75033922,0.0005452,120]
[314282996,1708147880663,-289.25224024,0.0005452,120]
[314282997,1708147880672,-523.96,0.0005452,120]
[314282998,1708147880680,-500.0,0.0005452,120]
[314282999,1708147880689,-854.01,0.0005452,120]
[314283000,1708147880698,-402.51106368,0.0005452,120]
[314283001,1708147880707,-893.76,0.0005452,120]
[314283002,1708147880717,-1165.59,0.0005452,120]
[314283003,1708147880725,-1495.02,0.0005452,120]
[314283004,1708147880735,-636.17,0.0005452,120]
[314283005,1708147880745,-5024.34,0.0005452,120]
[314283006,1708147880754,-602.99,0.0005452,120]
[314283007,1708147880763,-3136.01,0.0005452,120]
[314283008,1708147880772,-418.15108518,0.0005452,120]
[314283009,1708147880782,-500.0,0.0005452,120]
[314283010,1708147880791,-569.8,0.0005452,120]
[314283011,1708147880800,-556.89,0.0005452,120]
[314283012,1708147880810,-3220.88,0.0005452,120]
[314283013,1708147880820,-500.0,0.0005452,120]
[314283014,1708147880829,-1210.8,0.0005452,14]
[314283015,1708147880838,-500.0,0.0005452,120]
[314283016,1708147880847,-1846.34,0.0005452,120]
[314283017,1708147880857,-783.66,0.0005452,120]
[314283018,1708147880866,-622.67,0.0005452,120]
[314283019,1708147880876,-500.0,0.0005452,120]
[314283020,1708147880885,-500.0,0.0005452,120]
[314283021,1708147880895,-502.24,0.0005452,120]
[314283022,1708147880904,-873.0,0.0005452,120]
[314283023,1708147880913,-500.0,0.0005452,120]
[314283024,1708147880922,-523.09,0.0005452,120]
[314283025,1708147880932,-500.0,0.0005452,120]
[314283026,1708147880941,-519.51,0.0005452,120]
[314283027,1708147880951,-500.0,0.0005452,120]
[314283028,1708147880960,-1634.88,0.0005452,120]
[314283029,1708147880969,-937.4,0.0005452,120]
[314283030,1708147880979,-2129.66,0.0005452,120]
[314283031,1708147880988,-577.85,0.0005452,120]
[314283032,1708147880998,-1182.25,0.0005452,120]
[314283033,1708147881008,-279.31154892,0.0005452,120]
[314283034,1708147881018,-1935.87,0.0005452,120]
[314283035,1708147881029,-1111.25,0.0005452,120]
[314283036,1708147881039,-692.92,0.0005452,120]
[314283037,1708147881049,-554.4,0.0005452,120]
[314283038,1708147881059,-879.44,0.0005452,120]
[314283039,1708147881068,-500.0,0.0005452,120]
[314283040,1708147881078,-1145.97,0.0005452,120]
[314283041,1708147881087,-500.0,0.0005452,120]
[314283042,1708147881096,-718.43,0.0005452,120]
[314283043,1708147881105,-548.51,0.0005452,120]
[314283044,1708147881114,-5123.64,0.0005452,120]
[314283045,1708147881125,-738.56,0.0005452,120]
[314283046,1708147881134,-500.0,0.00054545,120]
[314283047,1708147881143,-48285.39015719,0.0005456,120]
[314283048,1708147881152,-48028.82701657,0.00054597,120]
[314283049,1708147881161,-153.47195516,0.00054605,62]
[314283050,1708147881170,-166.05101382,0.00054689,60]
[314283051,1708147881180,-500.0,0.00054711,120]
[314283052,1708147881190,-151.021777,0.00054748,80]
[314283053,1708147881199,-456.8,0.00054748,30]
[314283054,1708147881208,-182.72,0.00054748,30]
[314283055,1708147881217,-152.266667,0.00054749,30]
[314283056,1708147881226,-152.266666,0.00054749,30]
[314283057,1708147881236,-152.266667,0.00054749,30]
[314283058,1708147881245,-152.266667,0.00054749,30]
[314283059,1708147881254,-405.42112,0.00054785,2]
[314283060,1708147881264,-1000.0,0.00054794,120]
[314283061,1708147881273,-1000.0,0.00054794,120]
[314283062,1708147881283,-1000.0,0.00054794,120]
[314283063,1708147881292,-1000.0,0.00054794,120]
[314283064,1708147881302,-1000.0,0.00054794,120]
[314283065,1708147881311,-1000.0,0.00054794,120]
[314283066,1708147881320,-1000.0,0.00054794,120]
[314283067,1708147881331,-831.55658541,0.00054794,120]
[314283068,1708147881340,-526.92,0.00054794,120]
[314283069,1708147881349,-1028.76,0.00054794,2]
[314283070,1708147881358,-2750.0,0.00054794,7]
[314283071,1708147881367,-629.85,0.00054794,120]
[314283072,1708147881377,-500.0,0.00054794,120]
[314283073,1708147881386,-563.05,0.00054794,2]
[314283074,1708147881399,-618.81,0.00054794,120]
[314283075,1708147881409,-500.0,0.00054794,120]
[314283076,1708147881418,-1162.21,0.00054794,120]
[314283077,1708147881427,-632.23342803,0.00054794,60]
[314283078,1708147881437,-739.89,0.00054794,120]
[314283079,1708147881446,-972.28,0.00054794,120]
[314283080,1708147881455,-523.96,0.00054794,120]
[314283081,1708147881465,-500.0,0.00054794,120]
[314283082,1708147881474,-854.01,0.00054794,120]
[314283083,1708147881485,-893.76,0.00054794,120]